[Event "*** Titled Tuesday Blitz"]
[Site "Chess.com"]
[Date "2018.08.07"]
[Round "1"]
[White "Keranke"]
[Black "djano"]
[Result "1-0"]
[WhiteElo "2833"]
[BlackElo "2393"]
[TimeControl "180+2"]
[EndTime "13:07:29 PDT"]
[Termination "Keranke won by resignation"]

1. d4 {[%clk 0:02:47.6]} 1... Nf6 {[%clk 0:03:00]} 2. Bf4 {[%clk 0:02:46.9]}
2... g6 {[%clk 0:02:59.7]} 3. Nf3 {[%clk 0:02:47.3]} 3... Bg7 {[%clk 0:03:00.6]}
4. h3 {[%clk 0:02:49]} 4... O-O {[%clk 0:03:01]} 5. e3 {[%clk 0:02:50.6]} 5...
d6 {[%clk 0:02:58.4]} 6. Be2 {[%clk 0:02:52]} 6... b6 {[%clk 0:02:53.7]} 7. O-O
{[%clk 0:02:52.8]} 7... Bb7 {[%clk 0:02:54.9]} 8. a4 {[%clk 0:02:54.4]} 8... a5
{[%clk 0:02:47]} 9. Na3 {[%clk 0:02:54.3]} 9... Nbd7 {[%clk 0:02:45.7]} 10. c3
{[%clk 0:02:55.2]} 10... Ne4 {[%clk 0:02:38.7]} 11. Bh2 {[%clk 0:02:55.8]} 11...
f5 {[%clk 0:02:37.2]} 12. Qb3+ {[%clk 0:02:49.5]} 12... Kh8 {[%clk 0:02:36]} 13.
Rfd1 {[%clk 0:02:50.9]} 13... Qe8 {[%clk 0:02:32.5]} 14. Nb5 {[%clk 0:02:50.2]}
14... Rc8 {[%clk 0:02:32]} 15. Qc4 {[%clk 0:02:49.8]} 15... c6 {[%clk
0:02:24.9]} 16. Na3 {[%clk 0:02:49.9]} 16... g5 {[%clk 0:02:17.9]} 17. Nd2
{[%clk 0:02:45]} 17... Ndf6 {[%clk 0:02:10.1]} 18. Nxe4 {[%clk 0:02:43.7]} 18...
Nxe4 {[%clk 0:02:11.4]} 19. Qb3 {[%clk 0:02:44.5]} 19... f4 {[%clk 0:01:50.5]}
20. f3 {[%clk 0:02:37.5]} 20... Ng3 {[%clk 0:01:40]} 21. Bxg3 {[%clk 0:02:38]}
21... fxg3 {[%clk 0:01:41.9]} 22. Qxb6 {[%clk 0:02:39]} 22... Rb8 {[%clk
0:01:40.2]} 23. Qxa5 {[%clk 0:02:39]} 23... Qg6 {[%clk 0:01:29.1]} 24. Nc4
{[%clk 0:02:26.7]} 24... Qe6 {[%clk 0:01:15.3]} 25. Qxg5 {[%clk 0:02:22.6]}
25... Ba6 {[%clk 0:01:10.6]} 26. d5 {[%clk 0:02:08.7]} 26... cxd5 {[%clk
0:01:05.9]} 27. Qxd5 {[%clk 0:02:09.6]} 27... Bxc4 {[%clk 0:00:52.7]} 28. Bxc4
{[%clk 0:01:41.1]} 28... Qxe3+ {[%clk 0:00:53.6]} 29. Kh1 {[%clk 0:01:42.7]}
29... Rxb2 {[%clk 0:00:54.7]} 30. Ra2 {[%clk 0:01:31.4]} 30... Qxc3 {[%clk
0:00:41.1]} 31. Rxb2 {[%clk 0:01:29]} 31... Qxb2 {[%clk 0:00:43]} 32. a5 {[%clk
0:01:29.1]} 32... Qa3 {[%clk 0:00:31.1]} 33. a6 {[%clk 0:01:27.6]} 33... Be5
{[%clk 0:00:28.9]} 34. Qb7 {[%clk 0:01:18.9]} 34... Qa4 {[%clk 0:00:26.7]} 35.
Bb3 {[%clk 0:01:17.5]} 35... Qa3 {[%clk 0:00:22.1]} 36. a7 {[%clk 0:01:15.4]}
36... Kg7 {[%clk 0:00:16.3]} 37. Qxe7+ {[%clk 0:01:14.9]} 37... Kg6 {[%clk
0:00:16.6]} 38. Bc2+ {[%clk 0:01:15.3]} 1-0

[Event "*** Titled Tuesday Blitz"]
[Site "Chess.com"]
[Date "2018.08.07"]
[Round "1"]
[White "CookiesAndIceCream"]
[Black "GMMelik"]
[Result "0-1"]
[WhiteElo "2250"]
[BlackElo "2600"]
[TimeControl "180+2"]
[EndTime "13:07:38 PDT"]
[Termination "GMMelik won by resignation"]

1. e4 {[%clk 0:03:01.9]} 1... e5 {[%clk 0:03:00.6]} 2. Nf3 {[%clk 0:03:02.7]}
2... Nc6 {[%clk 0:03:01.8]} 3. Nc3 {[%clk 0:03:04.2]} 3... Nf6 {[%clk
0:03:02.7]} 4. Bb5 {[%clk 0:03:05.7]} 4... Bd6 {[%clk 0:03:02.5]} 5. O-O {[%clk
0:03:06.1]} 5... O-O {[%clk 0:03:03.3]} 6. d3 {[%clk 0:03:07.6]} 6... a6 {[%clk
0:03:04.3]} 7. Bc4 {[%clk 0:03:07.3]} 7... Na5 {[%clk 0:03:02.4]} 8. Bb3 {[%clk
0:03:06.8]} 8... Nxb3 {[%clk 0:03:03.3]} 9. axb3 {[%clk 0:03:08.3]} 9... h6
{[%clk 0:03:02.4]} 10. d4 {[%clk 0:02:56.1]} 10... exd4 {[%clk 0:03:02.1]} 11.
Qxd4 {[%clk 0:02:57.6]} 11... Nh7 {[%clk 0:02:40]} 12. e5 {[%clk 0:02:55.4]}
12... Be7 {[%clk 0:02:41.2]} 13. Bf4 {[%clk 0:02:49.3]} 13... Ng5 {[%clk
0:02:37.9]} 14. Nxg5 {[%clk 0:02:44.6]} 14... Bxg5 {[%clk 0:02:39.8]} 15. Bg3
{[%clk 0:02:45.4]} 15... f5 {[%clk 0:02:26.5]} 16. f4 {[%clk 0:02:38.2]} 16...
Be7 {[%clk 0:02:26.3]} 17. Nd5 {[%clk 0:02:32.5]} 17... Kh7 {[%clk 0:02:16.4]}
18. Rad1 {[%clk 0:02:25.2]} 18... b6 {[%clk 0:02:16.1]} 19. Nxe7 {[%clk
0:02:23.5]} 19... Qxe7 {[%clk 0:02:16.8]} 20. Rfe1 {[%clk 0:02:21.3]} 20... Qe6
{[%clk 0:02:16.4]} 21. Kh1 {[%clk 0:02:16.3]} 21... Rf7 {[%clk 0:02:15.7]} 22.
Qc3 {[%clk 0:02:09.9]} 22... Ra7 {[%clk 0:01:48.3]} 23. Rd2 {[%clk 0:01:58.5]}
23... Bb7 {[%clk 0:01:48.5]} 24. Red1 {[%clk 0:01:59.9]} 24... Bc6 {[%clk
0:01:42.1]} 25. h3 {[%clk 0:01:31.7]} 25... a5 {[%clk 0:01:42.9]} 26. Bf2 {[%clk
0:01:28.8]} 26... Ra8 {[%clk 0:01:42.1]} 27. Qc4 {[%clk 0:01:23.7]} 27... Re8
{[%clk 0:01:40.8]} 28. Qe2 {[%clk 0:01:22.1]} 28... Qg6 {[%clk 0:01:39.2]} 29.
Bg1 {[%clk 0:01:21.3]} 29... Ree7 {[%clk 0:01:33.1]} 30. Qc4 {[%clk 0:01:20.2]}
30... Qg3 {[%clk 0:01:27]} 31. Qc3 {[%clk 0:01:19.8]} 31... Qxf4 {[%clk
0:01:26.2]} 32. Bd4 {[%clk 0:01:16.1]} 32... Qh4 {[%clk 0:01:24.4]} 33. Rf2
{[%clk 0:01:14]} 33... f4 {[%clk 0:01:22.5]} 34. Kh2 {[%clk 0:01:02.3]} 34...
Re6 {[%clk 0:01:22]} 35. Rdf1 {[%clk 0:00:58.6]} 35... Rg6 {[%clk 0:01:21.3]}
36. Qd3 {[%clk 0:00:56.1]} 36... Qg3+ {[%clk 0:01:20.4]} 37. Kg1 {[%clk
0:00:51.1]} 37... f3 {[%clk 0:01:19.1]} 38. Re1 {[%clk 0:00:44.2]} 38... fxg2
{[%clk 0:01:16.3]} 39. Qxg3 {[%clk 0:00:45.1]} 39... Rxg3 {[%clk 0:01:13.5]} 40.
e6 {[%clk 0:00:46.5]} 40... Rxf2 {[%clk 0:01:12.6]} 41. Kxf2 {[%clk 0:00:46.9]}
41... Rf3+ {[%clk 0:01:11.3]} 42. Kxg2 {[%clk 0:00:42.7]} 42... Rd3+ {[%clk
0:00:53]} 43. Kf2 {[%clk 0:00:39.2]} 43... Rxd4 {[%clk 0:00:54.1]} 44. e7 {[%clk
0:00:40]} 44... d6 {[%clk 0:00:55.1]} 45. e8=Q {[%clk 0:00:40]} 45... Bxe8
{[%clk 0:00:56.1]} 46. Rxe8 {[%clk 0:00:41.4]} 46... Rd2+ {[%clk 0:00:57.1]} 0-1

[Event "*** Titled Tuesday Blitz"]
[Site "Chess.com"]
[Date "2018.08.07"]
[Round "1"]
[White "Antifish7"]
[Black "indfraeng"]
[Result "0-1"]
[WhiteElo "2406"]
[BlackElo "1894"]
[TimeControl "180+2"]
[EndTime "13:07:39 PDT"]
[Termination "indfraeng won by resignation"]

1. e4 {[%clk 0:03:01.9]} 1... e5 {[%clk 0:02:58.6]} 2. Nf3 {[%clk 0:03:02.8]}
2... Nf6 {[%clk 0:02:57.9]} 3. Nxe5 {[%clk 0:03:03.4]} 3... d6 {[%clk
0:02:58.2]} 4. Nf3 {[%clk 0:03:03.7]} 4... Nxe4 {[%clk 0:02:58.7]} 5. d4 {[%clk
0:03:05.4]} 5... d5 {[%clk 0:02:58.5]} 6. Bd3 {[%clk 0:03:07.1]} 6... Bf5 {[%clk
0:02:58.8]} 7. O-O {[%clk 0:03:08.2]} 7... Be7 {[%clk 0:02:59.3]} 8. c4 {[%clk
0:03:09.5]} 8... dxc4 {[%clk 0:02:58.2]} 9. Bxc4 {[%clk 0:03:10.3]} 9... O-O
{[%clk 0:02:57.8]} 10. Nc3 {[%clk 0:03:11.8]} 10... Nf6 {[%clk 0:02:53.9]} 11.
Qb3 {[%clk 0:03:03.4]} 11... b6 {[%clk 0:02:45.3]} 12. Ne5 {[%clk 0:02:58.9]}
12... Bg6 {[%clk 0:02:44.3]} 13. Rd1 {[%clk 0:02:41.6]} 13... c6 {[%clk
0:02:36]} 14. Bg5 {[%clk 0:02:36]} 14... Qc7 {[%clk 0:02:34.4]} 15. Rac1 {[%clk
0:02:24]} 15... Nbd7 {[%clk 0:02:30.3]} 16. Nb5 {[%clk 0:02:14.6]} 16... Qb7
{[%clk 0:02:26.9]} 17. Nc3 {[%clk 0:01:45.7]} 17... Rac8 {[%clk 0:02:22.5]} 18.
h4 {[%clk 0:01:43.2]} 18... Bh5 {[%clk 0:02:00.5]} 19. g4 {[%clk 0:01:38.8]}
19... Nxe5 {[%clk 0:01:56.2]} 20. Bxf6 {[%clk 0:01:24.3]} 20... Nxg4 {[%clk
0:01:32.6]} 21. Be5 {[%clk 0:01:11.6]} 21... Bxh4 {[%clk 0:01:30.4]} 22. Ne4
{[%clk 0:01:11.6]} 22... c5 {[%clk 0:01:26.1]} 23. Bd5 {[%clk 0:01:07.9]} 23...
Qd7 {[%clk 0:01:21.7]} 24. dxc5 {[%clk 0:01:03]} 24... Nxe5 {[%clk 0:01:16.6]}
25. Nd6 {[%clk 0:00:38]} 25... Bxd1 {[%clk 0:01:06.9]} 26. Rxd1 {[%clk
0:00:38.7]} 26... Qg4+ {[%clk 0:01:06.1]} 27. Kf1 {[%clk 0:00:38.9]} 27... Qf4
{[%clk 0:01:00.8]} 28. Qc2 {[%clk 0:00:27.6]} 28... Rxc5 {[%clk 0:00:58.8]} 29.
Qe2 {[%clk 0:00:28.4]} 29... Ng4 {[%clk 0:00:53.3]} 30. Nxf7 {[%clk 0:00:21.3]}
30... Ne3+ {[%clk 0:00:53]} 31. Ke1 {[%clk 0:00:19.7]} 31... Rxf7 {[%clk
0:00:43.1]} 32. Bxf7+ {[%clk 0:00:18.1]} 32... Kxf7 {[%clk 0:00:42.7]} 33. Rd7+
{[%clk 0:00:19.3]} 33... Ke8 {[%clk 0:00:41.9]} 34. Rd3 {[%clk 0:00:18.9]} 34...
Re5 {[%clk 0:00:41.5]} 0-1

[Event "*** Titled Tuesday Blitz"]
[Site "Chess.com"]
[Date "2018.08.07"]
[Round "1"]
[White "Cocaino74"]
[Black "NikolaGry"]
[Result "0-1"]
[WhiteElo "2208"]
[BlackElo "2521"]
[TimeControl "180+2"]
[EndTime "13:07:42 PDT"]
[Termination "NikolaGry won by resignation"]

1. e4 {[%clk 0:03:01.1]} 1... c5 {[%clk 0:02:52.8]} 2. Nf3 {[%clk 0:03:01.6]}
2... Nf6 {[%clk 0:02:52.9]} 3. e5 {[%clk 0:03:01.8]} 3... Nd5 {[%clk 0:02:53.2]}
4. Nc3 {[%clk 0:03:03.2]} 4... e6 {[%clk 0:02:54]} 5. Nxd5 {[%clk 0:03:04]} 5...
exd5 {[%clk 0:02:54.3]} 6. d4 {[%clk 0:03:05.5]} 6... Nc6 {[%clk 0:02:55.2]} 7.
dxc5 {[%clk 0:03:06.1]} 7... Bxc5 {[%clk 0:02:55.3]} 8. Qxd5 {[%clk 0:03:07.2]}
8... d6 {[%clk 0:02:56.3]} 9. exd6 {[%clk 0:03:04.5]} 9... Qb6 {[%clk
0:02:56.1]} 10. Qe4+ {[%clk 0:02:42]} 10... Be6 {[%clk 0:02:54.6]} 11. Qh4
{[%clk 0:02:42.4]} 11... Qb4+ {[%clk 0:01:54]} 12. Qxb4 {[%clk 0:02:26.5]} 12...
Nxb4 {[%clk 0:01:53.3]} 13. Bb5+ {[%clk 0:02:26.7]} 13... Kf8 {[%clk 0:01:36.3]}
14. O-O {[%clk 0:01:45.1]} 14... Nxc2 {[%clk 0:01:34.7]} 15. Bg5 {[%clk
0:01:42]} 15... Nxa1 {[%clk 0:01:25.5]} 16. Be7+ {[%clk 0:01:32.3]} 16... Kg8
{[%clk 0:01:26.1]} 17. Rxa1 {[%clk 0:01:34.2]} 17... f6 {[%clk 0:01:19.2]} 18.
Rc1 {[%clk 0:01:22.3]} 18... Bb6 {[%clk 0:01:15.4]} 19. Nd2 {[%clk 0:00:17.5]}
19... Kf7 {[%clk 0:01:12.3]} 20. b3 {[%clk 0:00:17.6]} 20... Rac8 {[%clk
0:01:02.1]} 21. Nc4 {[%clk 0:00:14.8]} 21... a6 {[%clk 0:00:48.6]} 22. d7 {[%clk
0:00:11.9]} 22... Kxe7 {[%clk 0:00:22]} 23. dxc8=Q {[%clk 0:00:10.8]} 23... Rxc8
{[%clk 0:00:22.5]} 24. Ba4 {[%clk 0:00:08.1]} 24... Ba7 {[%clk 0:00:23.2]} 25.
Re1 {[%clk 0:00:06.9]} 25... b5 {[%clk 0:00:23.2]} 26. Ne3 {[%clk 0:00:04.9]}
26... Kf7 {[%clk 0:00:21.3]} 27. Bxb5 {[%clk 0:00:05.1]} 27... axb5 {[%clk
0:00:22.1]} 0-1

[Event "*** Titled Tuesday Blitz"]
[Site "Chess.com"]
[Date "2018.08.07"]
[Round "1"]
[White "Oleksandr_Bortnyk"]
[Black "BlackBoarder"]
[Result "1-0"]
[WhiteElo "2760"]
[BlackElo "2374"]
[TimeControl "180+2"]
[EndTime "13:07:45 PDT"]
[Termination "Oleksandr_Bortnyk won by resignation"]

1. d4 {[%clk 0:02:32]} 1... Nf6 {[%clk 0:03:00.1]} 2. Nc3 {[%clk 0:02:32.6]}
2... d5 {[%clk 0:02:59.9]} 3. Bf4 {[%clk 0:02:34.1]} 3... e6 {[%clk 0:02:58.8]}
4. Nb5 {[%clk 0:02:34.7]} 4... Na6 {[%clk 0:02:58.2]} 5. e3 {[%clk 0:02:35.6]}
5... c6 {[%clk 0:02:50.4]} 6. Nc3 {[%clk 0:02:36]} 6... Be7 {[%clk 0:02:38.3]}
7. Bxa6 {[%clk 0:02:35.4]} 7... bxa6 {[%clk 0:02:39.2]} 8. Nf3 {[%clk
0:02:34.4]} 8... O-O {[%clk 0:02:37.8]} 9. O-O {[%clk 0:02:31.1]} 9... Nh5
{[%clk 0:02:30.5]} 10. Ne5 {[%clk 0:02:25.1]} 10... Nxf4 {[%clk 0:02:21]} 11.
Nxc6 {[%clk 0:02:24.5]} 11... Nh3+ {[%clk 0:02:03.4]} 12. gxh3 {[%clk
0:02:23.5]} 12... Qc7 {[%clk 0:02:04.7]} 13. Nxe7+ {[%clk 0:02:23.2]} 13... Qxe7
{[%clk 0:02:06.6]} 14. Qf3 {[%clk 0:02:24.6]} 14... Rb8 {[%clk 0:02:04.7]} 15.
Rab1 {[%clk 0:02:16.9]} 15... Bd7 {[%clk 0:02:03.1]} 16. Qg3 {[%clk 0:02:16.3]}
16... Rfc8 {[%clk 0:01:58]} 17. h4 {[%clk 0:02:08.6]} 17... h6 {[%clk
0:01:39.6]} 18. Rfe1 {[%clk 0:02:04]} 18... Bc6 {[%clk 0:01:28]} 19. Ne2 {[%clk
0:02:03.3]} 19... Rb7 {[%clk 0:01:14.3]} 20. Nf4 {[%clk 0:02:01.5]} 20... Rcb8
{[%clk 0:01:01.2]} 21. b3 {[%clk 0:01:53.2]} 21... Be8 {[%clk 0:00:53]} 22. Nd3
{[%clk 0:01:39.9]} 22... Rc8 {[%clk 0:00:37.4]} 23. Nc5 {[%clk 0:01:40.5]} 23...
Rxc5 {[%clk 0:00:38.2]} 24. dxc5 {[%clk 0:01:42.4]} 24... Qxc5 {[%clk 0:00:40]}
25. c4 {[%clk 0:01:38.4]} 25... dxc4 {[%clk 0:00:35.6]} 26. bxc4 {[%clk
0:01:39.5]} 26... Rxb1 {[%clk 0:00:36.2]} 27. Rxb1 {[%clk 0:01:41.4]} 27... Bc6
{[%clk 0:00:30.9]} 28. Qf4 {[%clk 0:01:38.5]} 28... f6 {[%clk 0:00:26.7]} 29. h3
{[%clk 0:01:27.1]} 29... Kh7 {[%clk 0:00:27.5]} 30. Kh2 {[%clk 0:01:26.6]} 30...
Qh5 {[%clk 0:00:28.1]} 31. Rg1 {[%clk 0:01:26.1]} 31... Qf7 {[%clk 0:00:15.3]}
32. a3 {[%clk 0:01:19.1]} 32... Ba8 {[%clk 0:00:16.3]} 33. c5 {[%clk 0:01:19.4]}
33... Qb7 {[%clk 0:00:16.7]} 34. Qg4 {[%clk 0:01:18.4]} 34... Qf7 {[%clk
0:00:14.9]} 35. h5 {[%clk 0:01:18.9]} 35... Kg8 {[%clk 0:00:13]} 36. Qf4 {[%clk
0:01:18.1]} 36... Bb7 {[%clk 0:00:12.4]} 37. Qxh6 {[%clk 0:01:18.5]} 37... Qc7+
{[%clk 0:00:10.6]} 38. Qf4 {[%clk 0:01:18.6]} 38... Qxc5 {[%clk 0:00:08.1]} 39.
h6 {[%clk 0:01:17.1]} 39... g5 {[%clk 0:00:05.8]} 40. Qxf6 {[%clk 0:01:16.1]}
40... Qc7+ {[%clk 0:00:07.1]} 41. Rg3 {[%clk 0:01:16.7]} 41... Kh7 {[%clk
0:00:05.1]} 42. Qxg5 {[%clk 0:01:17.1]} 1-0

[Event "*** Titled Tuesday Blitz"]
[Site "Chess.com"]
[Date "2018.08.07"]
[Round "1"]
[White "ShimanovAlex"]
[Black "jposthuma"]
[Result "1-0"]
[WhiteElo "2766"]
[BlackElo "2379"]
[TimeControl "180+2"]
[EndTime "13:07:57 PDT"]
[Termination "ShimanovAlex won by resignation"]

1. d4 {[%clk 0:02:56.4]} 1... Nf6 {[%clk 0:03:00.5]} 2. Nf3 {[%clk 0:02:56.6]}
2... c5 {[%clk 0:03:01.4]} 3. c3 {[%clk 0:02:56.8]} 3... g6 {[%clk 0:03:02.4]}
4. dxc5 {[%clk 0:02:55.8]} 4... Bg7 {[%clk 0:03:03.2]} 5. Nbd2 {[%clk
0:02:55.7]} 5... O-O {[%clk 0:03:02.4]} 6. g3 {[%clk 0:02:54.9]} 6... Na6 {[%clk
0:02:58.1]} 7. Nb3 {[%clk 0:02:55.7]} 7... Qc7 {[%clk 0:02:49.2]} 8. Bf4 {[%clk
0:02:31.3]} 8... Qc6 {[%clk 0:02:49.6]} 9. Bg2 {[%clk 0:02:32.5]} 9... Nxc5
{[%clk 0:02:46.7]} 10. O-O {[%clk 0:02:34]} 10... d6 {[%clk 0:02:42.4]} 11. Ne1
{[%clk 0:02:17.4]} 11... Qb6 {[%clk 0:02:30]} 12. Nd3 {[%clk 0:02:14.6]} 12...
Be6 {[%clk 0:02:22.4]} 13. Nd4 {[%clk 0:02:12.2]} 13... Bd5 {[%clk 0:02:18.3]}
14. Be3 {[%clk 0:01:46.8]} 14... Bxg2 {[%clk 0:02:09.5]} 15. Kxg2 {[%clk
0:01:48.7]} 15... Nd5 {[%clk 0:02:08.3]} 16. Bc1 {[%clk 0:01:38.2]} 16... Rac8
{[%clk 0:01:53.4]} 17. Nb3 {[%clk 0:01:38.1]} 17... Qc6 {[%clk 0:01:41.8]} 18.
Kg1 {[%clk 0:01:38.1]} 18... Nb6 {[%clk 0:01:36.6]} 19. Nb4 {[%clk 0:01:36.7]}
19... Qe4 {[%clk 0:01:27.4]} 20. Re1 {[%clk 0:01:24.5]} 20... Nc4 {[%clk
0:01:24.5]} 21. Nd2 {[%clk 0:01:23.8]} 21... Qe6 {[%clk 0:01:16]} 22. Nxc4
{[%clk 0:01:22.3]} 22... Qxc4 {[%clk 0:01:17.9]} 23. Nd5 {[%clk 0:01:23.5]}
23... Rfe8 {[%clk 0:01:13.6]} 24. Bg5 {[%clk 0:01:24.1]} 24... Qe4 {[%clk
0:00:59.6]} 25. f3 {[%clk 0:01:22.7]} 25... Qe6 {[%clk 0:00:58.7]} 26. e4 {[%clk
0:01:23.6]} 26... h6 {[%clk 0:00:56.8]} 27. Be3 {[%clk 0:01:22.5]} 27... b6
{[%clk 0:00:51.4]} 28. Qd2 {[%clk 0:01:22.6]} 28... Kh7 {[%clk 0:00:51.8]} 29.
Rad1 {[%clk 0:01:19.5]} 29... Nd7 {[%clk 0:00:46.2]} 30. Kg2 {[%clk 0:01:17.5]}
30... Ne5 {[%clk 0:00:45.4]} 31. b3 {[%clk 0:01:18.1]} 31... f5 {[%clk 0:00:29]}
32. Bf4 {[%clk 0:01:01.1]} 32... fxe4 {[%clk 0:00:19.5]} 33. Rxe4 {[%clk
0:01:01.9]} 33... Qf7 {[%clk 0:00:20.2]} 34. c4 {[%clk 0:00:58.5]} 34... Nd7
{[%clk 0:00:16.4]} 35. Rde1 {[%clk 0:00:56.1]} 35... e5 {[%clk 0:00:17]} 36. Be3
{[%clk 0:00:56.6]} 36... Nf6 {[%clk 0:00:12.1]} 37. Rh4 {[%clk 0:00:56.1]} 37...
Nxd5 {[%clk 0:00:11.8]} 38. Bxh6 {[%clk 0:00:55.7]} 38... Nf6 {[%clk 0:00:11.7]}
39. Bxg7+ {[%clk 0:00:54.2]} 39... Nh5 {[%clk 0:00:07.5]} 40. Qh6+ {[%clk
0:00:54.2]} 1-0

[Event "*** Titled Tuesday Blitz"]
[Site "Chess.com"]
[Date "2018.08.07"]
[Round "1"]
[White "guillembaches"]
[Black "Arystanner23"]
[Result "0-1"]
[WhiteElo "2226"]
[BlackElo "2570"]
[TimeControl "180+2"]
[EndTime "13:08:00 PDT"]
[Termination "Arystanner23 won by resignation"]

1. d4 {[%clk 0:03:01.2]} 1... Nf6 {[%clk 0:03:00.8]} 2. Bf4 {[%clk 0:03:01.8]}
2... e6 {[%clk 0:03:01.9]} 3. e3 {[%clk 0:03:01.5]} 3... c5 {[%clk 0:03:03.1]}
4. c3 {[%clk 0:03:01.8]} 4... Nc6 {[%clk 0:03:04.1]} 5. Nd2 {[%clk 0:03:02.5]}
5... d5 {[%clk 0:03:04.7]} 6. Ngf3 {[%clk 0:03:03.3]} 6... cxd4 {[%clk
0:03:05.7]} 7. exd4 {[%clk 0:03:03.8]} 7... Nh5 {[%clk 0:03:06.5]} 8. Be3 {[%clk
0:03:03.3]} 8... Bd6 {[%clk 0:03:07.5]} 9. Bb5 {[%clk 0:03:02.2]} 9... O-O
{[%clk 0:03:02.9]} 10. Ne5 {[%clk 0:02:44.7]} 10... g6 {[%clk 0:02:50.9]} 11.
Ndf3 {[%clk 0:02:27.5]} 11... Ne7 {[%clk 0:02:39]} 12. O-O {[%clk 0:02:24]}
12... Nf5 {[%clk 0:02:37.1]} 13. Bd2 {[%clk 0:02:16.4]} 13... f6 {[%clk
0:02:35.9]} 14. Ng4 {[%clk 0:02:10.2]} 14... Nhg7 {[%clk 0:02:27.7]} 15. Re1
{[%clk 0:02:05]} 15... a6 {[%clk 0:02:28.2]} 16. Bd3 {[%clk 0:02:02.1]} 16...
Bd7 {[%clk 0:02:29.2]} 17. Ne3 {[%clk 0:01:53.2]} 17... Nxe3 {[%clk 0:02:29.7]}
18. Bxe3 {[%clk 0:01:53.6]} 18... Qc7 {[%clk 0:02:26.2]} 19. h4 {[%clk
0:01:50.7]} 19... Rae8 {[%clk 0:02:26.5]} 20. Bh6 {[%clk 0:01:43.8]} 20... Bf4
{[%clk 0:02:22.1]} 21. Bxg7 {[%clk 0:01:38.6]} 21... Kxg7 {[%clk 0:02:20]} 22.
h5 {[%clk 0:01:39.8]} 22... e5 {[%clk 0:02:15.6]} 23. dxe5 {[%clk 0:01:30.9]}
23... fxe5 {[%clk 0:02:15.5]} 24. Bf1 {[%clk 0:01:31.8]} 24... e4 {[%clk
0:02:04.8]} 25. Nd4 {[%clk 0:01:23.3]} 25... Bh2+ {[%clk 0:02:02.8]} 26. Kh1
{[%clk 0:01:23.8]} 26... Rxf2 {[%clk 0:02:03.8]} 27. Re2 {[%clk 0:01:15.3]}
27... Ref8 {[%clk 0:02:00.9]} 28. Rxf2 {[%clk 0:01:15]} 28... Rxf2 {[%clk
0:02:01.8]} 29. Nf3 {[%clk 0:01:12.6]} 29... Be5 {[%clk 0:01:48.8]} 30. Kg1
{[%clk 0:00:43.3]} 30... exf3 {[%clk 0:01:30.6]} 31. Kxf2 {[%clk 0:00:42.1]}
31... Qb6+ {[%clk 0:01:12.5]} 32. Kxf3 {[%clk 0:00:41.5]} 32... Qf6+ {[%clk
0:01:13.4]} 33. Ke3 {[%clk 0:00:35.5]} 33... Qf4+ {[%clk 0:01:14.1]} 34. Kd3
{[%clk 0:00:30.4]} 34... Bf5+ {[%clk 0:01:14.7]} 35. Ke2 {[%clk 0:00:28.3]}
35... Bg4+ {[%clk 0:01:14.4]} 36. Ke1 {[%clk 0:00:29.6]} 36... Bxd1 {[%clk
0:01:12.7]} 0-1

[Event "*** Titled Tuesday Blitz"]
[Site "Chess.com"]
[Date "2018.08.07"]
[Round "1"]
[White "BillForster"]
[Black "MaestroASK"]
[Result "0-1"]
[WhiteElo "1637"]
[BlackElo "2418"]
[TimeControl "180+2"]
[EndTime "13:08:07 PDT"]
[Termination "MaestroASK won by resignation"]

1. d4 {[%clk 0:02:48.6]} 1... d6 {[%clk 0:03:01.8]} 2. e4 {[%clk 0:02:46.2]}
2... g6 {[%clk 0:03:03.7]} 3. Nc3 {[%clk 0:02:44.7]} 3... c6 {[%clk 0:03:04.1]}
4. Be3 {[%clk 0:02:42.8]} 4... e5 {[%clk 0:03:04.5]} 5. Nf3 {[%clk 0:02:35.9]}
5... Bg7 {[%clk 0:03:03.4]} 6. h3 {[%clk 0:02:34.9]} 6... f6 {[%clk 0:03:01.6]}
7. Be2 {[%clk 0:02:33.9]} 7... Nd7 {[%clk 0:03:00.8]} 8. O-O {[%clk 0:02:33.7]}
8... Nh6 {[%clk 0:03:00.9]} 9. Qd2 {[%clk 0:02:27.8]} 9... Nf7 {[%clk
0:03:01.3]} 10. Rfd1 {[%clk 0:02:22.9]} 10... Qe7 {[%clk 0:03:01.8]} 11. Bf1
{[%clk 0:02:22.4]} 11... O-O {[%clk 0:03:01.5]} 12. Re1 {[%clk 0:02:20.2]} 12...
Re8 {[%clk 0:02:59.5]} 13. Rad1 {[%clk 0:02:19.9]} 13... Nb6 {[%clk 0:02:59.7]}
14. b3 {[%clk 0:02:16.7]} 14... Qf8 {[%clk 0:02:59.2]} 15. Nb1 {[%clk
0:02:12.6]} 15... Bh6 {[%clk 0:02:57.6]} 16. c4 {[%clk 0:02:07.4]} 16... Bxe3
{[%clk 0:02:57]} 17. Qxe3 {[%clk 0:02:06.9]} 17... Qh6 {[%clk 0:02:55]} 18. Nc3
{[%clk 0:02:03.1]} 18... Qxe3 {[%clk 0:02:54.6]} 19. Rxe3 {[%clk 0:02:03.8]}
19... Kf8 {[%clk 0:02:53]} 20. Red3 {[%clk 0:01:59.9]} 20... Ke7 {[%clk
0:02:52.7]} 21. c5 {[%clk 0:01:54]} 21... dxc5 {[%clk 0:02:52.6]} 22. dxc5
{[%clk 0:01:53.2]} 22... Nd7 {[%clk 0:02:52.9]} 23. b4 {[%clk 0:01:53.5]} 23...
a5 {[%clk 0:02:52.9]} 24. a3 {[%clk 0:01:50.9]} 24... axb4 {[%clk 0:02:49.2]}
25. axb4 {[%clk 0:01:50.7]} 25... Nf8 {[%clk 0:02:45.9]} 26. Be2 {[%clk
0:01:42]} 26... Be6 {[%clk 0:02:40.8]} 27. h4 {[%clk 0:01:36.5]} 27... h5 {[%clk
0:02:40.4]} 28. g3 {[%clk 0:01:36.2]} 28... Red8 {[%clk 0:02:39.5]} 29. Rxd8
{[%clk 0:01:31.5]} 29... Nxd8 {[%clk 0:02:39.2]} 30. Ne1 {[%clk 0:01:23]} 30...
Ra3 {[%clk 0:02:35.8]} 31. Rd3 {[%clk 0:01:15.1]} 31... Rb3 {[%clk 0:02:27.1]}
32. Bd1 {[%clk 0:01:04.7]} 32... Rxb4 {[%clk 0:02:25.7]} 33. Nc2 {[%clk
0:01:01.4]} 33... Rc4 {[%clk 0:02:21.7]} 34. Ne3 {[%clk 0:00:27.5]} 34... Rxc5
{[%clk 0:02:20.1]} 35. Kg2 {[%clk 0:00:22.1]} 35... Nd7 {[%clk 0:02:15.4]} 36.
Na4 {[%clk 0:00:18.4]} 36... Ra5 {[%clk 0:02:13.9]} 37. Nc3 {[%clk 0:00:10.8]}
37... b5 {[%clk 0:02:09]} 38. Bc2 {[%clk 0:00:08.4]} 38... Nb7 {[%clk 0:02:06]}
39. Nb1 {[%clk 0:00:06.4]} 39... Nd6 {[%clk 0:02:03.8]} 40. f3 {[%clk
0:00:05.7]} 40... Nc4 {[%clk 0:01:58.2]} 41. Rc3 {[%clk 0:00:05.6]} 41... Nxe3+
{[%clk 0:01:54]} 42. Rxe3 {[%clk 0:00:04.7]} 42... Ra2 {[%clk 0:01:52.3]} 43.
Re2 {[%clk 0:00:04.7]} 43... Bc4 {[%clk 0:01:46.9]} 44. Rd2 {[%clk 0:00:05.5]}
44... Nc5 {[%clk 0:01:42.8]} 45. Kf2 {[%clk 0:00:06.3]} 45... b4 {[%clk
0:01:37.3]} 46. Ke3 {[%clk 0:00:06]} 46... b3 {[%clk 0:01:29.3]} 47. Bd1 {[%clk
0:00:06.7]} 47... Ra1 {[%clk 0:01:24.2]} 48. Rb2 {[%clk 0:00:05.7]} 48... Na4
{[%clk 0:01:22.3]} 0-1